[Event "Titled Tuesday Blitz November 29 Late 2022"]
[White "Stanisz, Patryk"]
[Black "Winkels, Marcel"]
[WhiteFideId "1123106"]
[BlackFideId "1003887"]
[WhiteElo "2069"]
[BlackElo "1900"]
[Result "0-1"]
[Round "05"]
[TimeControl "180+1"]
[Date "2022.11.30"]
[WhiteClock "0:00:01"]
[BlackClock "0:00:39"]

1. Nf3 {[%clk 0:03:00]}  Nf6 {[%clk 0:02:58]} 2. c4 {[%clk 0:03:01]}  g6 {[%clk 0:02:57]} 3. Nc3 {[%clk 0:03:01]}  Bg7 {[%clk 0:02:56]} 4. e4 {[%clk 0:03:01]}  d6 {[%clk 0:02:47]} 5. d4 {[%clk 0:03:01]}  O-O {[%clk 0:02:48]} 6. h3 {[%clk 0:02:58]}  c5 {[%clk 0:02:47]} 7. d5 {[%clk 0:02:57]}  e6 {[%clk 0:02:46]} 8. Bd3 {[%clk 0:02:40]}  exd5 {[%clk 0:02:45]} 9. cxd5 {[%clk 0:02:41]}  b5 {[%clk 0:02:44]} 10. a4 {[%clk 0:02:41]}  b4 {[%clk 0:02:38]} 11. Ne2 {[%clk 0:02:40]}  Re8 {[%clk 0:02:38]} 12. Ng3 {[%clk 0:02:30]}  Nxd5 {[%clk 0:02:33]} 13. O-O {[%clk 0:02:30]}  Nf6 {[%clk 0:02:32]} 14. Bb5 {[%clk 0:02:27]}  Rf8 {[%clk 0:02:21]} 15. Bf4 {[%clk 0:02:19]}  d5 {[%clk 0:02:11]} 16. e5 {[%clk 0:02:15]}  Ne4 {[%clk 0:02:09]} 17. Qe2 {[%clk 0:01:59]}  Nxg3 {[%clk 0:02:05]} 18. Bxg3 {[%clk 0:02:00]}  Be6 {[%clk 0:02:01]} 19. Rac1 {[%clk 0:01:54]}  Nd7 {[%clk 0:01:58]} 20. Rfd1 {[%clk 0:01:41]}  Rb8 {[%clk 0:01:57]} 21. Bxd7 {[%clk 0:01:34]}  Qxd7 {[%clk 0:01:56]} 22. Rxc5 {[%clk 0:01:34]}  Qxa4 {[%clk 0:01:51]} 23. Nd4 {[%clk 0:01:13]}  Rfc8 {[%clk 0:01:48]} 24. b3 {[%clk 0:01:06]}  Qd7 {[%clk 0:01:40]} 25. Rdc1 {[%clk 0:01:05]}  Bf8 {[%clk 0:01:35]} 26. Rxc8 {[%clk 0:00:36]}  Rxc8 {[%clk 0:01:32]} 27. Rf1 {[%clk 0:00:36]}  a5 {[%clk 0:01:31]} 28. f4 {[%clk 0:00:36]}  Bc5 {[%clk 0:01:25]} 29. Bf2 {[%clk 0:00:35]}  Qa7 {[%clk 0:01:20]} 30. Qd2 {[%clk 0:00:36]}  a4 {[%clk 0:01:14]} 31. bxa4 {[%clk 0:00:35]}  Bxd4 {[%clk 0:01:07]} 32. Bxd4 {[%clk 0:00:33]}  Qxa4 {[%clk 0:01:07]} 33. f5 {[%clk 0:00:32]}  Bxf5 {[%clk 0:00:54]} 34. Rxf5 {[%clk 0:00:27]}  gxf5 {[%clk 0:00:53]} 35. Qg5+ {[%clk 0:00:26]}  Kf8 {[%clk 0:00:51]} 36. e6 {[%clk 0:00:17]}  Qd1+ {[%clk 0:00:48]} 37. Kh2 {[%clk 0:00:11]}  Qxd4 {[%clk 0:00:47]} 38. e7+ {[%clk 0:00:04]}  Ke8 {[%clk 0:00:46]} 39. Qg8+ {[%clk 0:00:04]}  Kd7 {[%clk 0:00:46]} 40. Qxf7 {[%clk 0:00:02]}  Qe5+ {[%clk 0:00:43]} 41. Kg1 {[%clk 0:00:02]}  Rc1+ {[%clk 0:00:42]} 42. Kf2 {[%clk 0:00:01]}  Qf4+ {[%clk 0:00:40]} 43. Ke2 {[%clk 0:00:01]}  Rc2+ {[%clk 0:00:39]} 44. Ke1 {[%clk 0:00:01]}  Qd2+ {[%clk 0:00:39]} 45. Kf1 {[%clk 0:00:01]}  Rc1# {[%clk 0:00:39]} 0-1


[Site "https://www.chess.com"]

[Event "Titled Tuesday Blitz November 29 Late 2022"]
[White "Suder, Jakub"]
[Black "Radjabov, Teimour"]
[WhiteFideId "1195310"]
[BlackFideId "13400924"]
[WhiteElo "2243"]
[BlackElo "2709"]
[Result "1-0"]
[Round "05"]
[TimeControl "180+1"]
[Date "2022.11.30"]
[WhiteClock "0:00:07"]
[BlackClock "0:00:01"]

1. d4 {[%clk 0:03:00]}  Nf6 {[%clk 0:02:58]} 2. c4 {[%clk 0:02:59]}  g6 {[%clk 0:02:59]} 3. Nc3 {[%clk 0:02:58]}  Bg7 {[%clk 0:02:59]} 4. e4 {[%clk 0:02:56]}  d6 {[%clk 0:02:59]} 5. Be2 {[%clk 0:02:56]}  O-O {[%clk 0:02:59]} 6. Nf3 {[%clk 0:02:52]}  a6 {[%clk 0:02:58]} 7. O-O {[%clk 0:02:50]}  Nc6 {[%clk 0:02:58]} 8. Be3 {[%clk 0:02:43]}  e5 {[%clk 0:02:54]} 9. d5 {[%clk 0:02:43]}  Ne7 {[%clk 0:02:54]} 10. Ne1 {[%clk 0:02:42]}  h5 {[%clk 0:02:53]} 11. f3 {[%clk 0:02:40]}  b6 {[%clk 0:02:50]} 12. b4 {[%clk 0:02:39]}  a5 {[%clk 0:02:50]} 13. a3 {[%clk 0:02:39]}  h4 {[%clk 0:02:48]} 14. c5 {[%clk 0:02:36]}  Nh5 {[%clk 0:02:34]} 15. cxd6 {[%clk 0:02:29]}  cxd6 {[%clk 0:02:33]} 16. Nd3 {[%clk 0:02:28]}  f5 {[%clk 0:02:30]} 17. bxa5 {[%clk 0:02:08]}  bxa5 {[%clk 0:02:27]} 18. Qb3 {[%clk 0:02:04]}  Ba6 {[%clk 0:02:18]} 19. Nb5 {[%clk 0:01:55]}  Nf4 {[%clk 0:01:59]} 20. Nxf4 {[%clk 0:01:31]}  exf4 {[%clk 0:01:59]} 21. Bf2 {[%clk 0:01:30]}  h3 {[%clk 0:01:47]} 22. a4 {[%clk 0:01:02]}  Bxa1 {[%clk 0:01:32]} 23. Rxa1 {[%clk 0:01:01]}  Kh7 {[%clk 0:01:33]} 24. Bf1 {[%clk 0:00:47]}  Qd7 {[%clk 0:01:16]} 25. Re1 {[%clk 0:00:39]}  Ng8 {[%clk 0:01:11]} 26. gxh3 {[%clk 0:00:35]}  Rfe8 {[%clk 0:01:07]} 27. Bg2 {[%clk 0:00:33]}  Rac8 {[%clk 0:01:02]} 28. Nd4 {[%clk 0:00:26]}  Bc4 {[%clk 0:00:54]} 29. Qa3 {[%clk 0:00:25]}  Qb7 {[%clk 0:00:48]} 30. Qc1 {[%clk 0:00:19]}  g5 {[%clk 0:00:35]} 31. Nxf5 {[%clk 0:00:18]}  Qb4 {[%clk 0:00:35]} 32. Qa1 {[%clk 0:00:17]}  Re5 {[%clk 0:00:31]} 33. Rc1 {[%clk 0:00:16]}  Nf6 {[%clk 0:00:29]} 34. Bd4 {[%clk 0:00:15]}  Rce8 {[%clk 0:00:27]} 35. Bxe5 {[%clk 0:00:15]}  Rxe5 {[%clk 0:00:26]} 36. Qc3 {[%clk 0:00:15]}  Qxc3 {[%clk 0:00:14]} 37. Rxc3 {[%clk 0:00:16]}  Bxd5 {[%clk 0:00:14]} 38. Nxd6 {[%clk 0:00:16]}  Be6 {[%clk 0:00:14]} 39. Bf1 {[%clk 0:00:16]}  Kg6 {[%clk 0:00:13]} 40. Rc7 {[%clk 0:00:15]}  Nd7 {[%clk 0:00:12]} 41. Nc4 {[%clk 0:00:15]}  Rc5 {[%clk 0:00:09]} 42. Rxc5 {[%clk 0:00:14]}  Nxc5 {[%clk 0:00:10]} 43. Nxa5 {[%clk 0:00:13]}  Nxa4 {[%clk 0:00:11]} 44. Nc6 {[%clk 0:00:13]}  Nc5 {[%clk 0:00:10]} 45. Nd4 {[%clk 0:00:13]}  Bd7 {[%clk 0:00:10]} 46. Bc4 {[%clk 0:00:11]}  Kf6 {[%clk 0:00:10]} 47. Kg2 {[%clk 0:00:11]}  Ke5 {[%clk 0:00:10]} 48. Ne2 {[%clk 0:00:11]}  Nb7 {[%clk 0:00:09]} 49. Bf7 {[%clk 0:00:11]}  Nd6 {[%clk 0:00:09]} 50. Bh5 {[%clk 0:00:12]}  Nc4 {[%clk 0:00:08]} 51. Bg4 {[%clk 0:00:11]}  Ne3+ {[%clk 0:00:08]} 52. Kf2 {[%clk 0:00:12]}  Bb5 {[%clk 0:00:09]} 53. Nc3 {[%clk 0:00:11]}  Bc4 {[%clk 0:00:09]} 54. Na4 {[%clk 0:00:07]}  Kd4 {[%clk 0:00:08]} 55. Nb6 {[%clk 0:00:07]}  Bb5 {[%clk 0:00:08]} 56. Nc8 {[%clk 0:00:07]}  Ke5 {[%clk 0:00:08]} 57. Ne7 {[%clk 0:00:07]}  Bc4 {[%clk 0:00:07]} 58. Nf5 {[%clk 0:00:07]}  Nc2 {[%clk 0:00:04]} 59. h4 {[%clk 0:00:07]}  gxh4 {[%clk 0:00:04]} 60. Nxh4 {[%clk 0:00:08]}  Nd4 {[%clk 0:00:04]} 61. Ng6+ {[%clk 0:00:08]}  Kf6 {[%clk 0:00:04]} 62. Nxf4 {[%clk 0:00:09]}  Kg5 {[%clk 0:00:04]} 63. Kg3 {[%clk 0:00:08]}  Kf6 {[%clk 0:00:04]} 64. h4 {[%clk 0:00:08]}  Nc6 {[%clk 0:00:04]} 65. Nd5+ {[%clk 0:00:09]}  Ke5 {[%clk 0:00:04]} 66. Ne3 {[%clk 0:00:09]}  Bf7 {[%clk 0:00:04]} 67. Bf5 {[%clk 0:00:09]}  Nd4 {[%clk 0:00:04]} 68. f4+ {[%clk 0:00:09]}  Kf6 {[%clk 0:00:05]} 69. Ng4+ {[%clk 0:00:10]}  Kg7 {[%clk 0:00:05]} 70. Ne5 {[%clk 0:00:10]}  Be8 {[%clk 0:00:05]} 71. Kg4 {[%clk 0:00:10]}  Kf6 {[%clk 0:00:05]} 72. h5 {[%clk 0:00:10]}  Ne2 {[%clk 0:00:02]} 73. h6 {[%clk 0:00:10]}  Nd4 {[%clk 0:00:02]} 74. h7 {[%clk 0:00:10]}  Kg7 {[%clk 0:00:03]} 75. Kg5 {[%clk 0:00:10]}  Kh8 {[%clk 0:00:03]} 76. Kf6 {[%clk 0:00:10]}  Bh5 {[%clk 0:00:02]} 77. Ng6+ {[%clk 0:00:09]}  Kxh7 {[%clk 0:00:02]} 78. Nf8+ {[%clk 0:00:09]}  Kh6 {[%clk 0:00:02]} 79. Ne6 {[%clk 0:00:09]}  Ne2 {[%clk 0:00:01]} 80. e5 {[%clk 0:00:07]}  Bf3 {[%clk 0:00:02]} 81. Bd3 {[%clk 0:00:07]}  Ng3 {[%clk 0:00:01]} 82. f5 {[%clk 0:00:07]}  Bd5 {[%clk 0:00:01]} 83. Ke7 {[%clk 0:00:07]} 1-0


[Site "https://www.chess.com"]

[Event "Titled Tuesday Blitz November 29 Late 2022"]
[White "Sztokbant, Bernardo Vainzoff"]
[Black "Ibarra Jerez, Jose Carlos"]
[WhiteFideId "2115956"]
[BlackFideId "2226332"]
[WhiteElo "2228"]
[BlackElo "2638"]
[Result "0-1"]
[Round "05"]
[TimeControl "180+1"]
[Date "2022.11.30"]
[WhiteClock "0:00:01"]
[BlackClock "0:00:48"]

1. e4 {[%clk 0:01:37]}  c5 {[%clk 0:02:57]} 2. c3 {[%clk 0:01:37]}  Nf6 {[%clk 0:02:57]} 3. e5 {[%clk 0:01:35]}  Nd5 {[%clk 0:02:57]} 4. d4 {[%clk 0:01:35]}  cxd4 {[%clk 0:02:57]} 5. Nf3 {[%clk 0:01:36]}  Nc6 {[%clk 0:02:56]} 6. cxd4 {[%clk 0:01:33]}  d6 {[%clk 0:02:56]} 7. Bc4 {[%clk 0:01:33]}  dxe5 {[%clk 0:02:55]} 8. dxe5 {[%clk 0:01:29]}  Ndb4 {[%clk 0:02:55]} 9. Qxd8+ {[%clk 0:01:27]}  Nxd8 {[%clk 0:02:55]} 10. Na3 {[%clk 0:01:24]}  Bg4 {[%clk 0:02:54]} 11. O-O {[%clk 0:01:20]}  e6 {[%clk 0:02:38]} 12. Nb5 {[%clk 0:01:08]}  Rc8 {[%clk 0:02:37]} 13. Bb3 {[%clk 0:01:07]}  Ndc6 {[%clk 0:02:26]} 14. Bf4 {[%clk 0:00:55]}  Nd3 {[%clk 0:02:21]} 15. Bg3 {[%clk 0:00:55]}  Bxf3 {[%clk 0:02:08]} 16. gxf3 {[%clk 0:00:55]}  a6 {[%clk 0:02:08]} 17. Rad1 {[%clk 0:00:41]}  Ndxe5 {[%clk 0:01:56]} 18. Nd6+ {[%clk 0:00:31]}  Bxd6 {[%clk 0:01:56]} 19. Rxd6 {[%clk 0:00:32]}  Nxf3+ {[%clk 0:01:54]} 20. Kg2 {[%clk 0:00:33]}  Nfd4 {[%clk 0:01:54]} 21. Rd1 {[%clk 0:00:25]}  Nxb3 {[%clk 0:01:50]} 22. axb3 {[%clk 0:00:26]}  O-O {[%clk 0:01:49]} 23. Rd7 {[%clk 0:00:26]}  Rfd8 {[%clk 0:01:47]} 24. Bc7 {[%clk 0:00:21]}  Rxd7 {[%clk 0:01:41]} 25. Rxd7 {[%clk 0:00:22]}  b5 {[%clk 0:01:32]} 26. Bf4 {[%clk 0:00:16]}  h6 {[%clk 0:01:26]} 27. Rb7 {[%clk 0:00:14]}  Nd4 {[%clk 0:01:20]} 28. Rb6 {[%clk 0:00:11]}  Rc6 {[%clk 0:01:17]} 29. Rb8+ {[%clk 0:00:10]}  Kh7 {[%clk 0:01:17]} 30. Rb7 {[%clk 0:00:11]}  Kg6 {[%clk 0:01:14]} 31. b4 {[%clk 0:00:11]}  Rc2 {[%clk 0:01:10]} 32. Rb6 {[%clk 0:00:10]}  Rxb2 {[%clk 0:01:05]} 33. Be5 {[%clk 0:00:08]}  Rxb4 {[%clk 0:01:06]} 34. Rxa6 {[%clk 0:00:08]}  Nf5 {[%clk 0:01:03]} 35. Rb6 {[%clk 0:00:05]}  Rb3 {[%clk 0:01:03]} 36. Bf4 {[%clk 0:00:04]}  f6 {[%clk 0:00:50]} 37. Rxe6 {[%clk 0:00:03]}  Nh4+ {[%clk 0:00:50]} 38. Kf1 {[%clk 0:00:03]}  Kf5 {[%clk 0:00:50]} 39. Re3 {[%clk 0:00:01]}  Rb1+ {[%clk 0:00:50]} 40. Ke2 {[%clk 0:00:02]}  Kxf4 {[%clk 0:00:50]} 41. Rb3 {[%clk 0:00:01]}  Rxb3 {[%clk 0:00:49]} 42. Kd2 {[%clk 0:00:01]}  Nf3+ {[%clk 0:00:48]} 0-1


[Site "https://www.chess.com"]

[Event "Titled Tuesday Blitz November 29 Late 2022"]
[White "Tan, Ralph"]
[Black "Risteski, Emil"]
[WhiteFideId "30966590"]
[BlackFideId "15005267"]
[WhiteElo "2059"]
[BlackElo "2251"]
[Result "0-1"]
[Round "05"]
[TimeControl "180+1"]
[Date "2022.11.30"]
[WhiteClock "0:00:44"]
[BlackClock "0:00:17"]

1. Nf3 {[%clk 0:03:00]}  d6 {[%clk 0:02:58]} 2. d4 {[%clk 0:03:00]}  Nf6 {[%clk 0:02:57]} 3. g3 {[%clk 0:03:00]}  Nbd7 {[%clk 0:02:57]} 4. Bg2 {[%clk 0:03:00]}  e5 {[%clk 0:02:58]} 5. O-O {[%clk 0:03:00]}  Be7 {[%clk 0:02:58]} 6. c4 {[%clk 0:03:00]}  O-O {[%clk 0:02:58]} 7. Nc3 {[%clk 0:03:01]}  c6 {[%clk 0:02:58]} 8. b3 {[%clk 0:03:01]}  Re8 {[%clk 0:02:53]} 9. Bb2 {[%clk 0:03:01]}  Bf8 {[%clk 0:02:50]} 10. e3 {[%clk 0:03:01]}  Qc7 {[%clk 0:02:36]} 11. Rc1 {[%clk 0:03:00]}  a6 {[%clk 0:02:34]} 12. Ne2 {[%clk 0:02:52]}  Qa5 {[%clk 0:01:35]} 13. a3 {[%clk 0:02:48]}  e4 {[%clk 0:01:26]} 14. Nd2 {[%clk 0:02:46]}  Qh5 {[%clk 0:01:26]} 15. Nf4 {[%clk 0:02:45]}  Qh6 {[%clk 0:01:23]} 16. d5 {[%clk 0:02:22]}  c5 {[%clk 0:01:19]} 17. Qc2 {[%clk 0:02:17]}  g5 {[%clk 0:01:03]} 18. Ne2 {[%clk 0:02:10]}  Ne5 {[%clk 0:00:59]} 19. Bxe5 {[%clk 0:02:08]}  Rxe5 {[%clk 0:00:58]} 20. Nxe4 {[%clk 0:02:03]}  Nxe4 {[%clk 0:00:56]} 21. Bxe4 {[%clk 0:02:04]}  Bh3 {[%clk 0:00:51]} 22. Bg2 {[%clk 0:02:03]}  Rae8 {[%clk 0:00:46]} 23. b4 {[%clk 0:01:42]}  b6 {[%clk 0:00:44]} 24. Rfe1 {[%clk 0:01:28]}  Qh5 {[%clk 0:00:34]} 25. bxc5 {[%clk 0:01:20]}  bxc5 {[%clk 0:00:33]} 26. Rb1 {[%clk 0:01:19]}  Rf5 {[%clk 0:00:23]} 27. Nc3 {[%clk 0:01:02]}  Rf6 {[%clk 0:00:17]} 28. f4 {[%clk 0:00:46]}  gxf4 {[%clk 0:00:13]} 29. exf4 {[%clk 0:00:46]}  Rxe1+ {[%clk 0:00:12]} 30. Rxe1 {[%clk 0:00:47]}  Rh6 {[%clk 0:00:11]} 31. Ne4 {[%clk 0:00:47]}  Bf5 {[%clk 0:00:10]} 32. Qf2 {[%clk 0:00:45]}  Bg7 {[%clk 0:00:10]} 33. Rd1 {[%clk 0:00:37]}  Qxd1+ {[%clk 0:00:09]} 34. Qf1 {[%clk 0:00:33]}  Bd4+ {[%clk 0:00:10]} 35. Kh1 {[%clk 0:00:33]}  Qxf1+ {[%clk 0:00:10]} 36. Bxf1 {[%clk 0:00:34]}  Bxe4+ {[%clk 0:00:10]} 37. Bg2 {[%clk 0:00:34]}  Bxg2+ {[%clk 0:00:11]} 38. Kxg2 {[%clk 0:00:35]}  f5 {[%clk 0:00:12]} 39. h3 {[%clk 0:00:35]}  Rf6 {[%clk 0:00:13]} 40. Kf3 {[%clk 0:00:35]}  Rf8 {[%clk 0:00:14]} 41. g4 {[%clk 0:00:35]}  Rb8 {[%clk 0:00:15]} 42. gxf5 {[%clk 0:00:36]}  Rb3+ {[%clk 0:00:15]} 43. Kg4 {[%clk 0:00:36]}  Rxa3 {[%clk 0:00:16]} 44. h4 {[%clk 0:00:37]}  Rc3 {[%clk 0:00:15]} 45. f6 {[%clk 0:00:37]}  Bxf6 {[%clk 0:00:15]} 46. Kf5 {[%clk 0:00:38]}  Kf7 {[%clk 0:00:16]} 47. h5 {[%clk 0:00:38]}  a5 {[%clk 0:00:17]} 48. h6 {[%clk 0:00:39]}  a4 {[%clk 0:00:18]} 49. Ke4 {[%clk 0:00:39]}  a3 {[%clk 0:00:18]} 50. Kf5 {[%clk 0:00:40]}  a2 {[%clk 0:00:19]} 51. Ke4 {[%clk 0:00:41]}  a1=Q {[%clk 0:00:19]} 52. Kf5 {[%clk 0:00:42]}  Qb1+ {[%clk 0:00:20]} 53. Kg4 {[%clk 0:00:43]}  Qg1+ {[%clk 0:00:20]} 54. Kf5 {[%clk 0:00:44]}  Qb1+ {[%clk 0:00:20]} 55. Kg4 {[%clk 0:00:44]}  Qg6# {[%clk 0:00:17]} 0-1


[Site "https://www.chess.com"]

[Event "Titled Tuesday Blitz November 29 Late 2022"]
[White "Tanenbaum, Zachary"]
[Black "Vlassov, Nikolai"]
[WhiteFideId "2060850"]
[BlackFideId "4103360"]
[WhiteElo "2175"]
[BlackElo "2324"]
[Result "1-0"]
[Round "05"]
[TimeControl "180+1"]
[Date "2022.11.30"]
[WhiteClock "0:00:24"]
[BlackClock "0:00:08"]

1. e4 {[%clk 0:03:00]}  Nc6 {[%clk 0:02:58]} 2. Nf3 {[%clk 0:03:00]}  d5 {[%clk 0:02:55]} 3. exd5 {[%clk 0:03:00]}  Qxd5 {[%clk 0:02:56]} 4. Nc3 {[%clk 0:03:01]}  Qa5 {[%clk 0:02:56]} 5. d4 {[%clk 0:03:02]}  Bg4 {[%clk 0:02:55]} 6. Bd2 {[%clk 0:03:01]}  O-O-O {[%clk 0:02:54]} 7. Nb5 {[%clk 0:02:52]}  Qb6 {[%clk 0:02:49]} 8. h3 {[%clk 0:02:40]}  Bxf3 {[%clk 0:02:45]} 9. Qxf3 {[%clk 0:02:41]}  a6 {[%clk 0:02:41]} 10. Qg4+ {[%clk 0:02:06]}  e6 {[%clk 0:02:37]} 11. Nc3 {[%clk 0:02:05]}  Nf6 {[%clk 0:02:19]} 12. Qg3 {[%clk 0:02:00]}  Qxb2 {[%clk 0:02:00]} 13. Rb1 {[%clk 0:02:00]}  Qxc2 {[%clk 0:01:59]} 14. Bd3 {[%clk 0:01:59]}  Bd6 {[%clk 0:01:39]} 15. Qf3 {[%clk 0:01:54]}  Qxb1+ {[%clk 0:01:24]} 16. Bxb1 {[%clk 0:01:51]}  Nxd4 {[%clk 0:01:24]} 17. Qd1 {[%clk 0:01:46]}  e5 {[%clk 0:01:21]} 18. O-O {[%clk 0:01:46]}  h6 {[%clk 0:01:10]} 19. Ne4 {[%clk 0:01:46]}  Nxe4 {[%clk 0:01:04]} 20. Bxe4 {[%clk 0:01:47]}  Bc5 {[%clk 0:01:04]} 21. Qg4+ {[%clk 0:01:42]}  Kb8 {[%clk 0:01:01]} 22. Rc1 {[%clk 0:01:39]}  Bb6 {[%clk 0:00:56]} 23. Kf1 {[%clk 0:01:33]}  f5 {[%clk 0:00:50]} 24. Bxf5 {[%clk 0:01:33]}  Nxf5 {[%clk 0:00:49]} 25. Qxf5 {[%clk 0:01:27]}  Rxd2 {[%clk 0:00:48]} 26. Rc2 {[%clk 0:01:27]}  Rhd8 {[%clk 0:00:46]} 27. g3 {[%clk 0:01:02]}  Rxc2 {[%clk 0:00:39]} 28. Qxc2 {[%clk 0:01:01]}  Rf8 {[%clk 0:00:40]} 29. Qc4 {[%clk 0:00:57]}  Rxf2+ {[%clk 0:00:38]} 30. Ke1 {[%clk 0:00:57]}  Rh2 {[%clk 0:00:36]} 31. Qg4 {[%clk 0:00:47]}  Rxa2 {[%clk 0:00:25]} 32. Qxg7 {[%clk 0:00:44]}  Ka7 {[%clk 0:00:19]} 33. Qxe5 {[%clk 0:00:44]}  a5 {[%clk 0:00:16]} 34. g4 {[%clk 0:00:39]}  a4 {[%clk 0:00:13]} 35. Qe6 {[%clk 0:00:38]}  Rb2 {[%clk 0:00:11]} 36. Qe4 {[%clk 0:00:34]}  Ba5+ {[%clk 0:00:07]} 37. Kd1 {[%clk 0:00:33]}  b5 {[%clk 0:00:07]} 38. Qd4+ {[%clk 0:00:32]}  Bb6 {[%clk 0:00:06]} 39. Qxb2 {[%clk 0:00:33]}  Ka6 {[%clk 0:00:07]} 40. h4 {[%clk 0:00:31]}  c5 {[%clk 0:00:07]} 41. g5 {[%clk 0:00:31]}  hxg5 {[%clk 0:00:07]} 42. hxg5 {[%clk 0:00:32]}  b4 {[%clk 0:00:08]} 43. g6 {[%clk 0:00:32]}  a3 {[%clk 0:00:08]} 44. Qe2+ {[%clk 0:00:30]}  Ka5 {[%clk 0:00:08]} 45. g7 {[%clk 0:00:29]}  b3 {[%clk 0:00:08]} 46. g8=Q {[%clk 0:00:29]}  a2 {[%clk 0:00:09]} 47. Qa8+ {[%clk 0:00:28]}  Kb4 {[%clk 0:00:09]} 48. Qd2+ {[%clk 0:00:28]}  Kb5 {[%clk 0:00:08]} 49. Qc3 {[%clk 0:00:26]}  c4 {[%clk 0:00:08]} 50. Qd5+ {[%clk 0:00:24]} 1-0


[Site "https://www.chess.com"]

[Event "Titled Tuesday Blitz November 29 Late 2022"]
[White "Yurovskykh, Oleksandr"]
[Black "Nugumanov, Bakhtiyar"]
[WhiteFideId "14134020"]
[BlackFideId "13701797"]
[WhiteElo "2265"]
[BlackElo "2287"]
[Result "1-0"]
[Round "05"]
[TimeControl "180+1"]
[Date "2022.11.30"]
[WhiteClock "0:00:26"]
[BlackClock "0:00:02"]

1. d4 {[%clk 0:03:00]}  Nf6 {[%clk 0:02:57]} 2. Nf3 {[%clk 0:03:01]}  g6 {[%clk 0:02:56]} 3. Nbd2 {[%clk 0:03:00]}  Bg7 {[%clk 0:02:53]} 4. e4 {[%clk 0:03:00]}  d6 {[%clk 0:02:54]} 5. Bb5+ {[%clk 0:02:59]}  c6 {[%clk 0:02:52]} 6. Be2 {[%clk 0:03:00]}  O-O {[%clk 0:02:52]} 7. O-O {[%clk 0:03:00]}  Nbd7 {[%clk 0:02:33]} 8. a4 {[%clk 0:02:58]}  e5 {[%clk 0:02:30]} 9. dxe5 {[%clk 0:02:57]}  dxe5 {[%clk 0:02:31]} 10. b3 {[%clk 0:02:45]}  Re8 {[%clk 0:02:23]} 11. Bb2 {[%clk 0:02:40]}  Nh5 {[%clk 0:02:15]} 12. Re1 {[%clk 0:02:39]}  Nc5 {[%clk 0:02:09]} 13. Bf1 {[%clk 0:02:36]}  Qc7 {[%clk 0:01:57]} 14. Nc4 {[%clk 0:02:31]}  Bg4 {[%clk 0:01:54]} 15. h3 {[%clk 0:02:28]}  Rad8 {[%clk 0:01:54]} 16. Qe2 {[%clk 0:02:27]}  Bc8 {[%clk 0:01:45]} 17. Qe3 {[%clk 0:02:18]}  b6 {[%clk 0:01:22]} 18. g3 {[%clk 0:02:02]}  h6 {[%clk 0:00:56]} 19. Rad1 {[%clk 0:01:42]}  Rxd1 {[%clk 0:00:40]} 20. Rxd1 {[%clk 0:01:43]}  Ba6 {[%clk 0:00:34]} 21. Ncxe5 {[%clk 0:01:24]}  Bxf1 {[%clk 0:00:21]} 22. Kxf1 {[%clk 0:01:22]}  Rxe5 {[%clk 0:00:18]} 23. Nxe5 {[%clk 0:01:21]}  Bxe5 {[%clk 0:00:19]} 24. Bxe5 {[%clk 0:01:20]}  Qxe5 {[%clk 0:00:19]} 25. Qxh6 {[%clk 0:01:20]}  Ne6 {[%clk 0:00:15]} 26. Qe3 {[%clk 0:01:17]}  Nf6 {[%clk 0:00:15]} 27. Re1 {[%clk 0:01:15]}  Qb2 {[%clk 0:00:13]} 28. Qd2 {[%clk 0:01:05]}  Qe5 {[%clk 0:00:11]} 29. Qe2 {[%clk 0:00:57]}  Nc5 {[%clk 0:00:10]} 30. Kg2 {[%clk 0:00:54]}  Qxe4+ {[%clk 0:00:08]} 31. Qxe4 {[%clk 0:00:54]}  Ncxe4 {[%clk 0:00:08]} 32. Kf3 {[%clk 0:00:52]}  Nc5 {[%clk 0:00:07]} 33. Re7 {[%clk 0:00:52]}  a5 {[%clk 0:00:06]} 34. Rc7 {[%clk 0:00:48]}  Ne6 {[%clk 0:00:07]} 35. Rc8+ {[%clk 0:00:48]}  Kg7 {[%clk 0:00:07]} 36. Ke3 {[%clk 0:00:48]}  c5 {[%clk 0:00:06]} 37. Rb8 {[%clk 0:00:47]}  Nd7 {[%clk 0:00:06]} 38. Rb7 {[%clk 0:00:47]}  Nef8 {[%clk 0:00:04]} 39. Ke4 {[%clk 0:00:47]}  Kf6 {[%clk 0:00:05]} 40. Kd5 {[%clk 0:00:47]}  Ke7 {[%clk 0:00:05]} 41. Kc6 {[%clk 0:00:47]}  Kd8 {[%clk 0:00:06]} 42. h4 {[%clk 0:00:46]}  Kc8 {[%clk 0:00:05]} 43. Ra7 {[%clk 0:00:43]}  Kd8 {[%clk 0:00:04]} 44. g4 {[%clk 0:00:39]}  Ke7 {[%clk 0:00:04]} 45. h5 {[%clk 0:00:39]}  gxh5 {[%clk 0:00:04]} 46. gxh5 {[%clk 0:00:40]}  Ke6 {[%clk 0:00:04]} 47. h6 {[%clk 0:00:38]}  c4 {[%clk 0:00:02]} 48. bxc4 {[%clk 0:00:36]}  Ne5+ {[%clk 0:00:02]} 49. Kxb6 {[%clk 0:00:36]}  Nxc4+ {[%clk 0:00:02]} 50. Kb5 {[%clk 0:00:35]}  Ne5 {[%clk 0:00:01]} 51. Ra8 {[%clk 0:00:32]}  Nh7 {[%clk 0:00:01]} 52. Kxa5 {[%clk 0:00:32]}  Ng4 {[%clk 0:00:02]} 53. Kb6 {[%clk 0:00:30]}  Nxf2 {[%clk 0:00:01]} 54. a5 {[%clk 0:00:30]}  Ne4 {[%clk 0:00:02]} 55. a6 {[%clk 0:00:30]}  Nd6 {[%clk 0:00:02]} 56. Rh8 {[%clk 0:00:30]}  Nf6 {[%clk 0:00:02]} 57. a7 {[%clk 0:00:30]}  Nd7+ {[%clk 0:00:02]} 58. Kc6 {[%clk 0:00:27]}  Ne5+ {[%clk 0:00:02]} 59. Kc7 {[%clk 0:00:25]}  Nb5+ {[%clk 0:00:02]} 60. Kb7 {[%clk 0:00:25]}  Nxa7 {[%clk 0:00:02]} 61. Kxa7 {[%clk 0:00:25]}  Kf6 {[%clk 0:00:03]} 62. Rg8 {[%clk 0:00:25]}  Ng6 {[%clk 0:00:02]} 63. h7 {[%clk 0:00:26]}  Ke7 {[%clk 0:00:02]} 64. Rxg6 {[%clk 0:00:25]}  fxg6 {[%clk 0:00:02]} 65. h8=Q {[%clk 0:00:26]} 1-0


[Site "https://www.chess.com"]